Workbook

Sheet Sheet1
B1: Viewing Angle Problem
B3: This DIGMath module lets you investigate
B4: the calculus problem of finding
B5: the maximum viewing angle a
B6: for viewing a painting hanging on a wall
C7: as a function of the
B8: distance x from the wall.
A10: How high H above eye level
B11: is the painting (1 - 10 feet)? | F11: =D12 -> 5
D12: 5 | E12: =#REF!+D12*(#REF!-#REF!)/100 -> 
J14: The graph of the function a = | N14: ="Arctan (" & TEXT(RR + s,"0") & "/x) - Arctan (" & TEXT(s,"0") & "/x)" -> Arctan (7/x) - Arctan (2/x)
A15: How tall T is the painting (1 - 6 feet)? | F15: =D16 -> 2
D16: 2 | E16: =#REF!+D16*(#REF!-#REF!)/100 ->  | K16: Select a distance from the wall: x0 = | O16: =N18/20 -> 8.25 | P16: feet
N18: 165 | O18: =Sheet2!G7+N18*(Sheet2!G8-Sheet2!G7)/100 -> 1650
L20: The value of the derivative there is a' = | P20: =Sheet2!H28 -> -0.03204343089
A21: ="At a distance of "&TEXT(x0,"0") &" feet from the wall, " -> At a distance of 8 feet from the wall,
A23: =" the viewing angle = "&TEXT(Sheet2!J10,"0.00") &" radians = " &TEXT(Sheet2!J11,"0.00") & " degrees " -> the viewing angle = 0.47 radians = 26.69 degrees
A26: Click each item below for suggestions and investigations
B27: Item 1
B28: Item 2
B29: Item 3
A33: To access/download all the DIGMath Apps for Calculus
A34: Click this link: | C34: DIGMath for Calculus
A36: Created by: Sheldon P. Gordon
A37: Farmingdale State College
A38: Development of this module was supported by the
A39: NSF's Division of Undergraduate Education
A40: under grants DUE-0310123 and DUE-0442160.

Sheet Sheet2
B1: x | C1: f(x) | F1: xl= | G1: =IF(Sheet1!$O$18<Sheet2!G7+80*Sheet2!G5,Sheet2!G7,Sheet1!O18-80*Sheet2!G5) -> 1570 | H1: =LOOKUP(Sheet1!O18,Sheet2!B3:B1002,Sheet2!C3:C1002)+LOOKUP(Sheet1!O18,Sheet2!B3:B1002,Sheet2!D3:D1002)*(G1-Sheet1!O18) -> 0.2553147455 | I1: "=yl
F2: xr= | G2: =IF(Sheet1!$O$18>Sheet2!G8-80*Sheet2!G5,Sheet2!G8,Sheet1!O18+80*Sheet2!G5) -> 1000 | H2: =LOOKUP(Sheet1!O18,Sheet2!B3:B1003,Sheet2!C3:C1003)+LOOKUP(Sheet1!O18,Sheet2!B3:B1003,Sheet2!D3:D1003)*(G2-Sheet1!O18) -> 1.364961656 | I2: "=yR
A3: 0 | B3: 0.0 | C3: =ATAN((RR+s)/x)-ATAN(s/x) -> 0.0003571428164 | D3: =s/(x^2+s^2)-(RR+s)/(x^2+(RR+s)^2) -> 0.3571427351
A4: 1 | B4: 0.1 | C4: 0.01785205795 | D4: 0.3568378406
A5: 2 | B5: =B4+0.05 -> 0.1 | C5: 0.03567365313 | D5: 0.3559251229 | F5: delta x = | G5: =(xMax-xMin)/1000 -> 1
A6: 3 | B6: =B5+0.05 -> 0.2 | C6: 0.05343455526 | D6: 0.3544116565
A7: 4 | B7: 0.2 | C7: 0.07110499465 | D7: 0.352308885 | F7: xMin = | G7: 0
A8: 5 | B8: 0.3 | C8: 0.08865588187 | D8: 0.3496325331 | F8: xMax = | G8: 1000
A9: 6 | B9: 0.3 | C9: 0.1060590149 | D9: 0.3464023218
A10: 7 | B10: 0.4 | C10: 0.1232872707 | D10: 0.34264162 | I10: alpha = | J10: =LOOKUP(x0,B3:B1003:C3:C1003) -> 0.4657778553 | K10: radians
A11: 8 | B11: 0.4 | C11: 0.1403147774 | D11: 0.338377042 | F11: Point | J11: =180/PI()*J10 -> 26.6871053 | K11: degrees
A12: 9 | B12: 0.5 | C12: 0.157117066 | D12: 0.3336380045 | F12: =1000-x0 -> 991.75 | G12: 0
A13: 10 | B13: 0.5 | C13: 0.1736711983 | D13: 0.3284562556
A14: 11 | B14: 0.6 | C14: 0.1899558722 | D14: 0.32286539 | F14: Horizontal Line
A15: 12 | B15: 0.6 | C15: 0.2059515008 | D15: 0.3169003613 | F15: 0 | G15: 0
A16: 13 | B16: 0.7 | C16: 0.2216402693 | D16: 0.3105970054 | F16: =F12 -> 991.75 | G16: 0
A17: 14 | B17: 0.7 | C17: 0.2370061669 | D17: 0.3039915827
A18: 15 | B18: 0.8 | C18: 0.2520349976 | D18: 0.297120351 | F18: Diagnonal Line
A19: 16 | B19: 0.8 | C19: 0.26671437 | D19: 0.2900191725 | F19: 0 | G19: 200
A20: 17 | B20: 0.9 | C20: 0.2810336683 | D20: 0.2827231633 | F20: 997 | G20: 0
A21: 18 | B21: 0.9 | C21: 0.2949840076 | D21: 0.2752663865
A22: 19 | B22: 1.0 | C22: 0.3085581741 | D22: 0.2676815915
A23: 20 | B23: 1.0 | C23: 0.3217505544 | D23: 0.26 | F23: Point on curve
A24: 21 | B24: 1.1 | C24: 0.334557054 | D24: 0.252251136 | F24: x= | G24: =F12*G5 -> 991.75
A25: 22 | B25: 1.1 | C25: 0.3469750095 | D25: 0.2444627 | F25: =x0 -> 8.25 | G25: =LOOKUP(20*F25,A3:A1003,C3:C1003) -> 0.4657778553
A26: 23 | B26: 1.2 | C26: 0.3590030954 | D26: 0.2366604821
A27: 24 | B27: 1.2 | C27: 0.3706412263 | D27: 0.2288683118 | F27: =x0 -> 8.25 | G27: 0 | H27: 0
A28: 25 | B28: 1.3 | C28: 0.3818904593 | D28: 0.2211080402 | F28: =x0 -> 8.25 | G28: =LOOKUP(20*F25,A3:A1003,C3:C1003) -> 0.4657778553 | H28: =LOOKUP(20*F25,A3:A1003,D3:D1003) -> -0.03204343089
A29: 26 | B29: 1.3 | C29: 0.3927528944 | D29: 0.2133995502
A30: 27 | B30: 1.4 | C30: 0.4032315775 | D30: 0.205760791
A31: 28 | B31: 1.4 | C31: 0.4133304045 | D31: 0.1982078324
A32: 29 | B32: 1.5 | C32: 0.4230540294 | D32: 0.1907549352
A33: 30 | B33: 1.5 | C33: 0.4324077756 | D33: 0.1834146341
A34: 31 | B34: 1.6 | C34: 0.441397552 | D34: 0.1761978305
A35: 32 | B35: 1.6 | C35: 0.4500297738 | D35: 0.1691138905
A36: 33 | B36: 1.7 | C36: 0.4583112884 | D36: 0.1621707484
A37: 34 | B37: 1.7 | C37: 0.4662493061 | D37: 0.1553750104
A38: 35 | B38: 1.8 | C38: 0.4738513365 | D38: 0.1487320592
A39: 36 | B39: 1.8 | C39: 0.48112513 | D39: 0.1422461567
A40: 37 | B40: 1.9 | C40: 0.4880786242 | D40: 0.1359205439
A41: 38 | B41: 1.9 | C41: 0.494719895 | D41: 0.129757537
A42: 39 | B42: 2.0 | C42: 0.5010571131 | D42: 0.1237586194
A43: 40 | B43: 2.0 | C43: 0.5070985044 | D43: 0.1179245283
A44: 41 | B44: 2.1 | C44: 0.5128523146 | D44: 0.1122553368
A45: 42 | B45: 2.1 | C45: 0.5183267781 | D45: 0.1067505295
A46: 43 | B46: 2.2 | C46: 0.5235300903 | D46: 0.1014090738
A47: 44 | B47: 2.2 | C47: 0.5284703835 | D47: 0.09622948505
A48: 45 | B48: 2.3 | C48: 0.5331557055 | D48: 0.09120988639
A49: 46 | B49: 2.3 | C49: 0.5375940019 | D49: 0.08634806379
A50: 47 | B50: 2.4 | C50: 0.5417930999 | D50: 0.08164151596
A51: 48 | B51: 2.4 | C51: 0.5457606958 | D51: 0.07708749955
A52: 49 | B52: 2.5 | C52: 0.5495043431 | D52: 0.07268307009
A53: 50 | B53: 2.5 | C53: 0.5530314442 | D53: 0.06842511864
A54: 51 | B54: 2.6 | C54: 0.5563492423 | D54: 0.06431040477
A55: 52 | B55: 2.6 | C55: 0.5594648163 | D55: 0.06033558586
A56: 53 | B56: 2.7 | C56: 0.5623850755 | D56: 0.05649724319
A57: 54 | B57: 2.7 | C57: 0.5651167573 | D57: 0.05279190501
A58: 55 | B58: 2.8 | C58: 0.5676664244 | D58: 0.0492160669
A59: 56 | B59: 2.8 | C59: 0.5700404637 | D59: 0.04576620956
A60: 57 | B60: 2.9 | C60: 0.5722450864 | D60: 0.04243881443
A61: 58 | B61: 2.9 | C61: 0.5742863278 | D61: 0.0392303772
A62: 59 | B62: 3.0 | C62: 0.5761700487 | D62: 0.03613741944
A63: 60 | B63: 3.0 | C63: 0.577901937 | D63: 0.03315649867
A64: 61 | B64: 3.1 | C64: 0.5794875092 | D64: 0.03028421689
A65: 62 | B65: 3.1 | C65: 0.5809321135 | D65: 0.02751722773
A66: 63 | B66: 3.2 | C66: 0.582240932 | D66: 0.02485224249
A67: 64 | B67: 3.2 | C67: =ATAN((RR+s)/x)-ATAN(s/x) -> 0.583418984 | D67: =s/(x^2+s^2)-(RR+s)/(x^2+(RR+s)^2) -> 0.0222860351
A68: 65 | B68: 3.3 | C68: 0.5844711291 | D68: 0.01981544614
A69: 66 | B69: 3.3 | C69: 0.5854020707 | D69: 0.01743738605
A70: 67 | B70: =B69+0.05 -> 3.4 | C70: 0.5862163595 | D70: 0.01514883757
A71: 68 | B71: 3.4 | C71: 0.5869183973 | D71: 0.01294685761
A72: 69 | B72: 3.5 | C72: 0.5875124403 | D72: 0.0108285785
A73: 70 | B73: 3.5 | C73: 0.5880026035 | D73: 0.008791208791
A74: 71 | B74: 3.6 | C74: 0.5883928644 | D74: 0.006832033616
A75: 72 | B75: 3.6 | C75: 0.5886870661 | D75: 0.00494841468
A76: 73 | B76: 3.7 | C76: 0.5888889223 | D76: 0.00313778995
A77: 74 | B77: 3.7 | C77: 0.5890020202 | D77: 0.001397673064
A78: 75 | B78: 3.7 | C78: 0.5890298246 | D78: -0.0002743474817
A79: 76 | B79: 3.8 | C79: 0.5889756814 | D79: -0.001880609345
A80: 77 | B80: 3.8 | C80: 0.5888428218 | D80: -0.003423377509
A81: 78 | B81: 3.9 | C81: 0.5886343653 | D81: -0.00490484559
A82: 79 | B82: 3.9 | C82: 0.5883533235 | D82: -0.006327137248
A83: 80 | B83: 4.0 | C83: 0.5880026035 | D83: -0.007692307692
A84: 81 | B84: 4.0 | C84: 0.5875850116 | D84: -0.009002345251
A85: 82 | B85: 4.1 | C85: 0.5871032558 | D85: -0.010259173
A86: 83 | B86: 4.1 | C86: 0.5865599501 | D86: -0.0114646504
A87: 84 | B87: 4.2 | C87: 0.5859576166 | D87: -0.01262057503
A88: 85 | B88: 4.2 | C88: 0.5852986895 | D88: -0.01372868424
A89: 86 | B89: 4.3 | C89: 0.5845855171 | D89: -0.01479065686
A90: 87 | B90: 4.3 | C90: 0.5838203656 | D90: -0.01580811495
A91: 88 | B91: 4.4 | C91: 0.5830054214 | D91: -0.01678262542
A92: 89 | B92: 4.4 | C92: 0.5821427936 | D92: -0.01771570177
A93: 90 | B93: 4.5 | C93: 0.5812345174 | D93: -0.01860880569
A94: 91 | B94: 4.5 | C94: 0.5802825557 | D94: -0.01946334872
A95: 92 | B95: 4.6 | C95: 0.5792888024 | D95: -0.02028069387
A96: 93 | B96: 4.6 | C96: 0.5782550843 | D96: -0.02106215712
A97: 94 | B97: 4.7 | C97: 0.5771831636 | D97: -0.02180900905
A98: 95 | B98: 4.7 | C98: 0.5760747398 | D98: -0.02252247624
A99: 96 | B99: 4.8 | C99: 0.5749314526 | D99: -0.02320374283
A100: 97 | B100: 4.8 | C100: 0.5737548832 | D100: -0.02385395187
A101: 98 | B101: 4.9 | C101: 0.5725465566 | D101: -0.02447420675
A102: 99 | B102: 4.9 | C102: 0.5713079439 | D102: -0.02506557256
A103: 100 | B103: 5.0 | C103: 0.5700404637 | D103: -0.02562907735
A104: 101 | B104: 5.0 | C104: 0.568745484 | D104: -0.02616571346
A105: 102 | B105: 5.1 | C105: 0.5674243242 | D105: -0.0266764387
A106: 103 | B106: 5.1 | C106: 0.5660782565 | D106: -0.02716217759
A107: 104 | B107: 5.2 | C107: 0.564708508 | D107: -0.02762382251
A108: 105 | B108: 5.2 | C108: 0.5633162615 | D108: -0.02806223479
A109: 106 | B109: 5.3 | C109: 0.5619026578 | D109: -0.02847824583
A110: 107 | B110: 5.3 | C110: 0.5604687969 | D110: -0.02887265813
A111: 108 | B111: 5.4 | C111: 0.5590157391 | D111: -0.02924624629
A112: 109 | B112: 5.4 | C112: 0.5575445068 | D112: -0.02959975804
A113: 110 | B113: 5.5 | C113: 0.5560560858 | D113: -0.02993391513
A114: 111 | B114: 5.5 | C114: 0.5545514263 | D114: -0.03024941425
A115: 112 | B115: 5.6 | C115: 0.5530314442 | D115: -0.03054692796
A116: 113 | B116: 5.6 | C116: 0.5514970224 | D116: -0.0308271055
A117: 114 | B117: 5.7 | C117: 0.5499490121 | D117: -0.03109057358
A118: 115 | B118: 5.7 | C118: 0.5483882334 | D118: -0.03133793727
A119: 116 | B119: 5.8 | C119: 0.546815477 | D119: -0.03156978066
A120: 117 | B120: 5.8 | C120: 0.5452315046 | D120: -0.03178666766
A121: 118 | B121: 5.9 | C121: 0.5436370504 | D121: -0.03198914269
A122: 119 | B122: 5.9 | C122: 0.5420328218 | D122: -0.03217773137
A123: 120 | B123: 6.0 | C123: 0.5404195003 | D123: -0.03235294118
A124: 121 | B124: 6.0 | C124: 0.5387977425 | D124: -0.03251526208
A125: 122 | B125: 6.1 | C125: 0.537168181 | D125: -0.03266516717
A126: 123 | B126: 6.1 | C126: 0.5355314251 | D126: -0.03280311324
A127: 124 | B127: 6.2 | C127: 0.5338880616 | D127: -0.03292954134
A128: 125 | B128: 6.2 | C128: 0.5322386558 | D128: -0.03304487737
A129: 126 | B129: 6.3 | C129: 0.5305837519 | D129: -0.03314953257
A130: 127 | B130: 6.3 | C130: 0.5289238739 | D130: -0.03324390405
A131: 128 | B131: 6.4 | C131: =ATAN((RR+s)/x)-ATAN(s/x) -> 0.5272595265 | D131: =s/(x^2+s^2)-(RR+s)/(x^2+(RR+s)^2) -> -0.03332837528
A132: 129 | B132: 6.4 | C132: 0.5255911952 | D132: -0.03340331657
A133: 130 | B133: 6.5 | C133: 0.5239193477 | D133: -0.03346908552
A134: 131 | B134: =B133+0.05 -> 6.5 | C134: 0.5222444338 | D134: -0.03352602747
A135: 132 | B135: 6.6 | C135: 0.5205668865 | D135: -0.03357447591
A136: 133 | B136: 6.6 | C136: 0.5188871224 | D136: -0.03361475292
A137: 134 | B137: 6.7 | C137: 0.5172055422 | D137: -0.03364716953
A138: 135 | B138: 6.7 | C138: 0.5155225314 | D138: -0.03367202613
A139: 136 | B139: 6.8 | C139: 0.5138384607 | D139: -0.03368961283
A140: 137 | B140: 6.8 | C140: 0.5121536866 | D140: -0.03370020981
A141: 138 | B141: 6.9 | C141: 0.5104685517 | D141: -0.03370408766
A142: 139 | B142: 6.9 | C142: 0.5087833855 | D142: -0.03370150771
A143: 140 | B143: 7.0 | C143: 0.5070985044 | D143: -0.03369272237
A144: 141 | B144: 7.0 | C144: 0.5054142126 | D144: -0.03367797541
A145: 142 | B145: 7.1 | C145: 0.5037308023 | D145: -0.03365750226
A146: 143 | B146: 7.1 | C146: 0.502048554 | D146: -0.0336315303
A147: 144 | B147: 7.2 | C147: 0.5003677372 | D147: -0.03360027915
A148: 145 | B148: 7.2 | C148: 0.4986886106 | D148: -0.0335639609
A149: 146 | B149: 7.3 | C149: 0.4970114222 | D149: -0.03352278041
A150: 147 | B150: 7.3 | C150: 0.4953364102 | D150: -0.03347693553
A151: 148 | B151: 7.4 | C151: 0.4936638032 | D151: -0.03342661732
A152: 149 | B152: 7.4 | C152: 0.49199382 | D152: -0.03337201034
A153: 150 | B153: 7.5 | C153: 0.4903266707 | D153: -0.03331329279
A154: 151 | B154: 7.5 | C154: 0.4886625564 | D154: -0.03325063682
A155: 152 | B155: 7.6 | C155: 0.4870016698 | D155: -0.03318420864
A156: 153 | B156: 7.6 | C156: 0.4853441957 | D156: -0.03311416879
A157: 154 | B157: 7.7 | C157: 0.4836903106 | D157: -0.0330406723
A158: 155 | B158: 7.7 | C158: 0.4820401836 | D158: -0.03296386889
A159: 156 | B159: 7.8 | C159: 0.4803939764 | D159: -0.03288390314
A160: 157 | B160: 7.8 | C160: 0.4787518436 | D160: -0.03280091466
A161: 158 | B161: 7.9 | C161: 0.477113933 | D161: -0.03271503826
A162: 159 | B162: 7.9 | C162: 0.4754803858 | D162: -0.03262640412
A163: 160 | B163: 8.0 | C163: 0.4738513365 | D163: -0.03253513795
A164: 161 | B164: 8.0 | C164: 0.4722269138 | D164: -0.03244136111
A165: 162 | B165: 8.1 | C165: 0.4706072403 | D165: -0.03234519078
A166: 163 | B166: 8.1 | C166: 0.4689924327 | D166: -0.03224674012
A167: 164 | B167: 8.2 | C167: 0.4673826024 | D167: -0.03214611833
A168: 165 | B168: 8.2 | C168: 0.4657778553 | D168: -0.03204343089
A169: 166 | B169: 8.3 | C169: 0.4641782921 | D169: -0.03193877958
A170: 167 | B170: 8.3 | C170: 0.4625840085 | D170: -0.03183226268
A171: 168 | B171: 8.4 | C171: 0.4609950953 | D171: -0.03172397503
A172: 169 | B172: 8.4 | C172: 0.4594116389 | D172: -0.03161400821
A173: 170 | B173: 8.5 | C173: 0.457833721 | D173: -0.03150245057
A174: 171 | B174: 8.5 | C174: 0.456261419 | D174: -0.03138938739
A175: 172 | B175: 8.6 | C175: 0.454694806 | D175: -0.031274901
A176: 173 | B176: 8.6 | C176: 0.4531339513 | D176: -0.0311590708
A177: 174 | B177: 8.7 | C177: 0.45157892 | D177: -0.03104197343
A178: 175 | B178: 8.7 | C178: 0.4500297738 | D178: -0.03092368284
A179: 176 | B179: 8.8 | C179: 0.4484865704 | D179: -0.03080427037
A180: 177 | B180: 8.8 | C180: 0.4469493643 | D180: -0.03068380483
A181: 178 | B181: 8.9 | C181: 0.4454182064 | D181: -0.03056235263
A182: 179 | B182: 8.9 | C182: 0.4438931444 | D182: -0.03043997779
A183: 180 | B183: 9.0 | C183: 0.442374223 | D183: -0.03031674208
A184: 181 | B184: 9.0 | C184: 0.4408614836 | D184: -0.03019270505
A185: 182 | B185: 9.1 | C185: 0.4393549649 | D185: -0.03006792414
A186: 183 | B186: 9.2 | C186: 0.4378547026 | D186: -0.02994245473
A187: 184 | B187: 9.2 | C187: 0.43636073 | D187: -0.02981635019
A188: 185 | B188: 9.3 | C188: 0.4348730773 | D188: -0.029689662
A189: 186 | B189: 9.3 | C189: 0.4333917727 | D189: -0.02956243976
A190: 187 | B190: 9.4 | C190: 0.4319168415 | D190: -0.02943473127
A191: 188 | B191: 9.4 | C191: 0.4304483069 | D191: -0.02930658261
A192: 189 | B192: 9.5 | C192: 0.4289861898 | D192: -0.02917803815
A193: 190 | B193: 9.5 | C193: 0.427530509 | D193: -0.02904914067
A194: 191 | B194: 9.6 | C194: 0.4260812809 | D194: -0.02891993134
A195: 192 | B195: 9.6 | C195: =ATAN((RR+s)/x)-ATAN(s/x) -> 0.4246385204 | D195: =s/(x^2+s^2)-(RR+s)/(x^2+(RR+s)^2) -> -0.02879044985
A196: 193 | B196: 9.7 | C196: 0.4232022399 | D196: -0.02866073437
A197: 194 | B197: 9.7 | C197: 0.4217724502 | D197: -0.02853082171
A198: 195 | B198: =B197+0.05 -> 9.8 | C198: 0.4203491604 | D198: -0.02840074724
A199: 196 | B199: 9.8 | C199: 0.4189323776 | D199: -0.02827054506
A200: 197 | B200: 9.9 | C200: 0.4175221075 | D200: -0.02814024795
... 803 more rows

Sheet Sheet3
A1: =xMin -> 0 | B1: =9 -> 9
A2: =A1+dx -> 1 | B2: =9 -> 9
A3: 2 | B3: =9 -> 9
A4: 3 | B4: =9 -> 9
A5: 4 | B5: =9 -> 9
A6: 5 | B6: =9 -> 9
A7: 6 | B7: =9 -> 9
A8: 7 | B8: =9 -> 9
A9: 8 | B9: =9 -> 9
A10: 9 | B10: =9 -> 9
A11: 10 | B11: =9 -> 9
A12: 11 | B12: =9 -> 9
A13: 12 | B13: =9 -> 9
A14: 13 | B14: =9 -> 9
A15: 14 | B15: =9 -> 9
A16: 15 | B16: =9 -> 9
A17: 16 | B17: =9 -> 9
A18: 17 | B18: =9 -> 9
A19: 18 | B19: =9 -> 9
A20: 19 | B20: =9 -> 9
A21: 20 | B21: =9 -> 9
A22: 21 | B22: =9 -> 9
A23: 22 | B23: =9 -> 9
A24: 23 | B24: =9 -> 9
A25: 24 | B25: =9 -> 9
A26: 25 | B26: =9 -> 9
A27: 26 | B27: =9 -> 9
A28: 27 | B28: =9 -> 9
A29: 28 | B29: =9 -> 9
A30: 29 | B30: =9 -> 9
A31: 30 | B31: =9 -> 9
A32: 31 | B32: =9 -> 9
A33: 32 | B33: =9 -> 9
A34: 33 | B34: =9 -> 9
A35: 34 | B35: =9 -> 9
A36: 35 | B36: =9 -> 9
A37: 36 | B37: =9 -> 9
A38: 37 | B38: =9 -> 9
A39: 38 | B39: =9 -> 9
A40: 39 | B40: =9 -> 9
A41: 40 | B41: =9 -> 9
A42: 41 | B42: =9 -> 9
A43: 42 | B43: =9 -> 9
A44: 43 | B44: =9 -> 9
A45: 44 | B45: =9 -> 9
A46: 45 | B46: =9 -> 9
A47: 46 | B47: =9 -> 9
A48: 47 | B48: =9 -> 9
A49: 48 | B49: =9 -> 9
A50: 49 | B50: =9 -> 9
A51: 50 | B51: =9 -> 9
A52: 51 | B52: =9 -> 9
A53: 52 | B53: =9 -> 9
A54: 53 | B54: =9 -> 9
A55: 54 | B55: =9 -> 9
A56: 55 | B56: =9 -> 9
A57: 56 | B57: =9 -> 9
A58: 57 | B58: =9 -> 9
A59: 58 | B59: =9 -> 9
A60: 59 | B60: =9 -> 9
A61: 60 | B61: =9 -> 9
A62: 61 | B62: =9 -> 9
A63: 62 | B63: =9 -> 9
A64: 63 | B64: =9 -> 9
A65: 64 | B65: =9 -> 9
A66: =A65+dx -> 65 | B66: =9 -> 9
A67: 66 | B67: =9 -> 9
A68: 67 | B68: =9 -> 9
A69: 68 | B69: =9 -> 9
A70: 69 | B70: =9 -> 9
A71: 70 | B71: =9 -> 9
A72: 71 | B72: =9 -> 9
A73: 72 | B73: =9 -> 9
A74: 73 | B74: =9 -> 9
A75: 74 | B75: =9 -> 9
A76: 75 | B76: =9 -> 9
A77: 76 | B77: =9 -> 9
A78: 77 | B78: =9 -> 9
A79: 78 | B79: =9 -> 9
A80: 79 | B80: =9 -> 9
A81: 80 | B81: =9 -> 9
A82: 81 | B82: =9 -> 9
A83: 82 | B83: =9 -> 9
A84: 83 | B84: =9 -> 9
A85: 84 | B85: =9 -> 9
A86: 85 | B86: =9 -> 9
A87: 86 | B87: =9 -> 9
A88: 87 | B88: =9 -> 9
A89: 88 | B89: =9 -> 9
A90: 89 | B90: =9 -> 9
A91: 90 | B91: =9 -> 9
A92: 91 | B92: =9 -> 9
A93: 92 | B93: =9 -> 9
A94: 93 | B94: =9 -> 9
A95: 94 | B95: =9 -> 9
A96: 95 | B96: =9 -> 9
A97: 96 | B97: =9 -> 9
A98: 97 | B98: =9 -> 9
A99: 98 | B99: =9 -> 9
A100: 99 | B100: =9 -> 9
A101: 100 | B101: =9 -> 9
A102: 101 | B102: =9 -> 9
A103: 102 | B103: =9 -> 9
A104: 103 | B104: =9 -> 9
A105: 104 | B105: =9 -> 9
A106: 105 | B106: =9 -> 9
A107: 106 | B107: =9 -> 9
A108: 107 | B108: =9 -> 9
A109: 108 | B109: =9 -> 9
A110: 109 | B110: =9 -> 9
A111: 110 | B111: =9 -> 9
A112: 111 | B112: =9 -> 9
A113: 112 | B113: =9 -> 9
A114: 113 | B114: =9 -> 9
A115: 114 | B115: =9 -> 9
A116: 115 | B116: =9 -> 9
A117: 116 | B117: =9 -> 9
A118: 117 | B118: =9 -> 9
A119: 118 | B119: =9 -> 9
A120: 119 | B120: =9 -> 9
A121: 120 | B121: =9 -> 9
A122: 121 | B122: =9 -> 9
A123: 122 | B123: =9 -> 9
A124: 123 | B124: =9 -> 9
A125: 124 | B125: =9 -> 9
A126: 125 | B126: =9 -> 9
A127: 126 | B127: =9 -> 9
A128: 127 | B128: =9 -> 9
A129: 128 | B129: =9 -> 9
A130: =A129+dx -> 129 | B130: =9 -> 9
A131: 130 | B131: =9 -> 9
A132: 131 | B132: =9 -> 9
A133: 132 | B133: =9 -> 9
A134: 133 | B134: =9 -> 9
A135: 134 | B135: =9 -> 9
A136: 135 | B136: =9 -> 9
A137: 136 | B137: =9 -> 9
A138: 137 | B138: =9 -> 9
A139: 138 | B139: =9 -> 9
A140: 139 | B140: =9 -> 9
A141: 140 | B141: =9 -> 9
A142: 141 | B142: =9 -> 9
A143: 142 | B143: =9 -> 9
A144: 143 | B144: =9 -> 9
A145: 144 | B145: =9 -> 9
A146: 145 | B146: =9 -> 9
A147: 146 | B147: =9 -> 9
A148: 147 | B148: =9 -> 9
A149: 148 | B149: =9 -> 9
A150: 149 | B150: =9 -> 9
A151: 150 | B151: =9 -> 9
A152: 151 | B152: =9 -> 9
A153: 152 | B153: =9 -> 9
A154: 153 | B154: =9 -> 9
A155: 154 | B155: =9 -> 9
A156: 155 | B156: =9 -> 9
A157: 156 | B157: =9 -> 9
A158: 157 | B158: =9 -> 9
A159: 158 | B159: =9 -> 9
A160: 159 | B160: =9 -> 9
A161: 160 | B161: =9 -> 9
A162: 161 | B162: =9 -> 9
A163: 162 | B163: =9 -> 9
A164: 163 | B164: =9 -> 9
A165: 164 | B165: =9 -> 9
A166: 165 | B166: =9 -> 9
A167: 166 | B167: =9 -> 9
A168: 167 | B168: =9 -> 9
A169: 168 | B169: =9 -> 9
A170: 169 | B170: =9 -> 9
A171: 170 | B171: =9 -> 9
A172: 171 | B172: =9 -> 9
A173: 172 | B173: =9 -> 9
A174: 173 | B174: =9 -> 9
A175: 174 | B175: =9 -> 9
A176: 175 | B176: =9 -> 9
A177: 176 | B177: =9 -> 9
A178: 177 | B178: =9 -> 9
A179: 178 | B179: =9 -> 9
A180: 179 | B180: =9 -> 9
A181: 180 | B181: =9 -> 9
A182: 181 | B182: =9 -> 9
A183: 182 | B183: =9 -> 9
A184: 183 | B184: =9 -> 9
A185: 184 | B185: =9 -> 9
A186: 185 | B186: =9 -> 9
A187: 186 | B187: =9 -> 9
A188: 187 | B188: =9 -> 9
A189: 188 | B189: =9 -> 9
A190: 189 | B190: =9 -> 9
A191: 190 | B191: =9 -> 9
A192: 191 | B192: =9 -> 9
A193: 192 | B193: =9 -> 9
A194: =A193+dx -> 193 | B194: =9 -> 9
A195: 194 | B195: =9 -> 9
A196: 195 | B196: =9 -> 9
A197: 196 | B197: =9 -> 9
A198: 197 | B198: =9 -> 9
A199: 198 | B199: =9 -> 9
A200: 199 | B200: =9 -> 9
... 803 more rows
